fUSD/lending_fUSD_20260701
["ID","MTS","AMOUNT","RATE_DAILY","PERIOD"]
[426824750,1782911434000,-500.0,0.00016438,2]
[426824711,1782911434000,-159.58,0.00016378,2]
[426824707,1782911434000,-2500.0,0.00016338,2]
[426824701,1782911434000,-9999.99,0.00016116,2]
[426824702,1782911434000,-1692.44836749,0.00016141,2]
[426824716,1782911434000,-500.0,0.00016438,2]
[426824768,1782911435000,-581.60727318,0.00016438,2]
[426824760,1782911435000,-500.0,0.00016438,2]
[426824769,1782911435000,-581.60727318,0.00016438,2]
[426824766,1782911435000,-500.0,0.00016438,2]
[426824765,1782911435000,-500.0,0.00016438,2]
[426824764,1782911435000,-500.0,0.00016438,2]
[426824763,1782911435000,-500.0,0.00016438,2]
[426824762,1782911435000,-500.0,0.00016438,2]
[426824756,1782911435000,-500.0,0.00016438,2]
[426824759,1782911435000,-500.0,0.00016438,2]
[426824754,1782911435000,-500.0,0.00016438,2]
[426824757,1782911435000,-500.0,0.00016438,2]
[426824753,1782911435000,-500.0,0.00016438,2]
[426824752,1782911435000,-500.0,0.00016438,2]
[426824755,1782911435000,-614.80092696,0.00016438,2]
[426824758,1782911435000,-500.0,0.00016438,2]
[426824772,1782911435000,-581.60727318,0.00016438,2]
[426824761,1782911435000,-500.0,0.00016438,2]
[426824767,1782911435000,-581.60727318,0.00016438,2]
[426824786,1782911435000,-581.60727318,0.00016438,2]
[426824770,1782911435000,-581.60727318,0.00016438,2]
[426824771,1782911435000,-581.60727318,0.00016438,2]
[426824790,1782911435000,-294.44524828,0.00016438,2]
[426824788,1782911435000,-581.60727318,0.00016438,2]
[426824791,1782911435000,-518.28385116,0.00016438,2]
[426824787,1782911435000,-581.60727318,0.00016438,2]
[426824785,1782911435000,-581.60727318,0.00016438,2]
[426824783,1782911435000,-581.60727318,0.00016438,2]
[426824782,1782911435000,-581.60727318,0.00016438,2]
[426824781,1782911435000,-581.60727318,0.00016438,2]
[426824789,1782911435000,-287.1620249,0.00016438,2]
[426824777,1782911435000,-581.60727318,0.00016438,2]
[426824779,1782911435000,-581.60727318,0.00016438,2]
[426824784,1782911435000,-581.60727318,0.00016438,2]
[426824778,1782911435000,-581.60727318,0.00016438,2]
[426824775,1782911435000,-581.60727318,0.00016438,2]
[426824776,1782911435000,-581.60727318,0.00016438,2]
[426824774,1782911435000,-581.60727318,0.00016438,2]
[426824780,1782911435000,-581.60727318,0.00016438,2]
[426824773,1782911435000,-581.60727318,0.00016438,2]
[426824822,1782911438000,-2500.0,0.00016545,2]
[426824824,1782911438000,-250.0,0.00016545,2]
[426824823,1782911438000,-600.0,0.00016545,2]
[426824827,1782911438000,-9827.83989556,0.00016747,2]
[426824821,1782911438000,-600.0,0.00016544,2]
[426824830,1782911438000,-273.77786131,0.00016966,2]
[426824828,1782911438000,-503.53,0.00016773,2]
[426824826,1782911438000,-161.81,0.00016712,2]
[426824829,1782911438000,-166.53,0.00016773,2]
[426824825,1782911438000,-150.0,0.00016645,2]
[426824832,1782911438000,-503.53,0.00017163,2]
[426824833,1782911438000,-500.0,0.00017452,2]
[426824817,1782911438000,-1000.0,0.000165,2]
[426824831,1782911438000,-900.0,0.00017121,2]
[426824814,1782911438000,-14.39615382,0.00016438,2]
[426824804,1782911438000,-581.60727318,0.00016438,2]
[426824812,1782911438000,-581.60727318,0.00016438,2]
[426824843,1782911438000,-500.0,0.00017989,2]
[426824806,1782911438000,-581.60727318,0.00016438,2]
[426824805,1782911438000,-581.60727318,0.00016438,2]
[426824809,1782911438000,-581.60727318,0.00016438,2]
[426824808,1782911438000,-581.60727318,0.00016438,2]
[426824803,1782911438000,-63.32342202,0.00016438,2]
[426824815,1782911438000,-581.60727318,0.00016438,2]
[426824807,1782911438000,-581.60727318,0.00016438,2]
[426824819,1782911438000,-250.0,0.00016544,2]
[426824820,1782911438000,-500.0,0.00016544,2]
[426824818,1782911438000,-500.0,0.0001652,2]
[426824811,1782911438000,-581.60727318,0.00016438,2]
[426824816,1782911438000,-193.92634545,0.00016438,2]
[426824813,1782911438000,-567.21111936,0.00016438,2]
[426824810,1782911438000,-581.60727318,0.00016438,2]
[426824840,1782911438000,-500.0,0.00017889,2]
[426824839,1782911438000,-796.59032826,0.000177,2]
[426824837,1782911438000,-649.69,0.00017645,2]
[426824857,1782911438000,-10018.21528157,0.000181,2]
[426824859,1782911438000,-5178.85494432,0.000181,2]
[426824868,1782911438000,-10344.6565,0.000184,2]
[426824867,1782911438000,-81155.05,0.00018356,2]
[426824856,1782911438000,-306.85,0.00018016,2]
[426824858,1782911438000,-1229.15838124,0.000181,2]
[426824854,1782911438000,-166.27992736,0.00018,2]
[426824860,1782911438000,-1500.0,0.00018108,2]
[426824865,1782911438000,-5178.85494432,0.000183,2]
[426824862,1782911438000,-1500.0,0.00018185,2]
[426824863,1782911438000,-10018.21528157,0.000183,2]
[426824866,1782911438000,-340.8690979,0.00018355,2]
[426824869,1782911438000,-151.0,0.0001841,2]
[426824834,1782911438000,-299.29,0.00017645,2]
[426824861,1782911438000,-1500.0,0.00018108,2]
[426824851,1782911438000,-60000.0,0.0001799,2]
[426824864,1782911438000,-1229.15838124,0.000183,2]
[426824845,1782911438000,-500.0,0.00017989,2]
[426824838,1782911438000,-166.53,0.00017696,2]
[426824847,1782911438000,-500.0,0.00017989,2]
[426824835,1782911438000,-749.31,0.00017645,2]
[426824841,1782911438000,-1244.97881345,0.0001789,2]
[426824870,1782911438000,-900.0,0.00018491,2]
[426824842,1782911438000,-33357.4706,0.0001789,2]
[426824844,1782911438000,-500.0,0.00017989,2]
[426824836,1782911438000,-178.49,0.00017645,2]
[426824849,1782911438000,-500.0,0.00017989,2]
[426824855,1782911438000,-432.96,0.00018016,2]
[426824848,1782911438000,-500.0,0.00017989,2]
[426824853,1782911438000,-45248.63211759,0.00018,2]
[426824850,1782911438000,-500.0,0.00017989,2]
[426824846,1782911438000,-500.0,0.00017989,2]
[426824852,1782911438000,-346.07,0.00018,2]
[426824917,1782911439000,-10018.21528157,0.000194,2]
[426824910,1782911439000,-20537.28,0.00019178,2]
[426824918,1782911439000,-1229.15838124,0.000194,2]
[426824919,1782911439000,-5178.85494432,0.000194,2]
[426824908,1782911439000,-250.0,0.00019178,2]
[426824909,1782911439000,-270.37119352,0.00019178,2]
[426824906,1782911439000,-250.0,0.00019178,2]
[426824905,1782911439000,-5178.85494432,0.000191,2]
[426824904,1782911439000,-1229.15838124,0.000191,2]
[426824911,1782911439000,-1500.0,0.00019281,2]
[426824901,1782911439000,-273.77786131,0.00019032,2]
[426824907,1782911439000,-250.0,0.00019178,2]
[426824915,1782911439000,-500.0,0.00019327,2]
[426824921,1782911439000,-368.0,0.00019452,2]
[426824914,1782911439000,-5178.85494432,0.000193,2]
[426824912,1782911439000,-10018.21528157,0.000193,2]
[426824920,1782911439000,-245.0,0.00019452,2]
[426824930,1782911439000,-10018.21528157,0.000198,2]
[426824922,1782911439000,-403.0,0.00019534,2]
[426824925,1782911439000,-1229.15838124,0.000196,2]
[426824924,1782911439000,-10018.21528157,0.000196,2]
[426824923,1782911439000,-166.53,0.00019541,2]
[426824927,1782911439000,-159.58,0.00019654,2]
[426824928,1782911439000,-170.19,0.00019664,2]
[426824929,1782911439000,-170.19,0.00019664,2]
[426824902,1782911439000,-1050.0,0.00019066,2]
[426824913,1782911439000,-1229.15838124,0.000193,2]
[426824895,1782911439000,-1229.15838124,0.000189,2]
[426824884,1782911439000,-1229.15838124,0.000187,2]
[426824898,1782911439000,-213.088554,0.00018914,2]
[426824871,1782911439000,-10018.21528157,0.000185,2]
[426824874,1782911439000,-166.53,0.00018619,2]
[426824872,1782911439000,-1229.15838124,0.000185,2]
[426824879,1782911439000,-500.0,0.00018699,2]
[426824875,1782911439000,-500.0,0.00018699,2]
[426824873,1782911439000,-5178.85494432,0.000185,2]
[426824877,1782911439000,-496.14,0.00018699,2]
[426824881,1782911439000,-500.0,0.00018699,2]
[426824880,1782911439000,-500.0,0.00018699,2]
[426824876,1782911439000,-516.45498593,0.00018699,2]
[426824878,1782911439000,-500.0,0.00018699,2]
[426824893,1782911439000,-3961.0,0.00018833,5]
[426824883,1782911439000,-10018.21528157,0.000187,2]
[426824903,1782911439000,-10018.21528157,0.000191,2]
[426824926,1782911439000,-5178.85494432,0.000196,2]
[426824882,1782911439000,-500.0,0.00018699,2]
[426824886,1782911439000,-1116.82,0.0001872,2]
[426824888,1782911439000,-15820.11,0.0001872,2]
[426824889,1782911439000,-160.0,0.00018731,2]
[426824891,1782911439000,-250.0,0.00018756,2]
[426824892,1782911439000,-224.952756,0.00018795,2]
[426824890,1782911439000,-1500.0,0.00018733,2]
[426824887,1782911439000,-1306.36,0.0001872,2]
[426824894,1782911439000,-10018.21528157,0.000189,2]
[426824899,1782911439000,-5260.9545314,0.00019,2]
[426824900,1782911439000,-160.0,0.00019,2]
[426824896,1782911439000,-5178.85494432,0.000189,2]
[426824897,1782911439000,-274.790489,0.00018914,2]
[426824885,1782911439000,-5178.85494432,0.000187,2]
[426824932,1782911439000,-5178.85494432,0.000198,2]
[426824916,1782911439000,-221.41,0.00019355,7]
[426824933,1782911439000,-150.0,0.000198,2]
[426824961,1782911439000,-10018.21528157,0.000202,2]
[426824962,1782911439000,-1975.16868611,0.0002033,7]
[426824968,1782911439000,-152.0,0.00020668,3]
[426824971,1782911439000,-10018.21528157,0.000208,2]
[426824970,1782911439000,-627.2968533,0.0002071,2]
[426824978,1782911439000,-175.20556228,0.00020925,2]
[426824980,1782911439000,-160.0,0.00021,7]
[426824976,1782911439000,-1129.0,0.00020898,2]
[426824969,1782911439000,-1752.9489647,0.0002071,2]
[426824972,1782911439000,-245.0,0.00020821,2]
[426824979,1782911439000,-216.66345934,0.00020933,2]
[426824975,1782911439000,-7052.6907,0.0002083,7]
[426824973,1782911439000,-3484.43168652,0.0002083,7]
[426824974,1782911439000,-5212.50141287,0.0002083,7]
[426824977,1782911439000,-216.66345934,0.000209,7]
[426824982,1782911439000,-160.0,0.0002104,2]
[426824992,1782911439000,-3993.0,0.00021687,5]
[426824985,1782911439000,-674.70454458,0.000212,2]
[426824984,1782911439000,-10018.21528157,0.000211,2]
[426824981,1782911439000,-674.70454458,0.00021,2]
[426824983,1782911439000,-273.77786131,0.00021099,2]
[426824987,1782911439000,-1022.35,0.0002137,2]
[426824986,1782911439000,-10018.21528157,0.000213,2]
[426824988,1782911439000,-674.70454458,0.000214,2]
[426824990,1782911439000,-285.05513885,0.00021576,2]
[426824991,1782911439000,-674.70454458,0.000216,2]
[426824931,1782911439000,-1229.15838124,0.000198,2]
[426824960,1782911439000,-308.0,0.00020136,2]
[426824957,1782911439000,-2000.0,0.0002,7]
[426824989,1782911439000,-10018.21528157,0.000215,2]
[426824959,1782911439000,-237.02923743,0.00020041,2]
[426824958,1782911439000,-10018.21528157,0.0002,2]
[426824935,1782911439000,-210.068,0.000198,2]
[426824936,1782911439000,-221.0,0.000198,2]
[426824941,1782911439000,-3566.0,0.000198,2]
[426824937,1782911439000,-150.758,0.000198,2]
[426824938,1782911439000,-168.675,0.000198,2]
[426824939,1782911439000,-150.0,0.000198,2]
[426824940,1782911439000,-150.0,0.000198,2]
[426824944,1782911439000,-1500.0,0.00019829,2]
[426824942,1782911439000,-1362.0,0.000198,2]
[426824943,1782911439000,-1278.0,0.000198,2]
[426824945,1782911439000,-748.4489748,0.0001983,2]
[426824950,1782911439000,-500.0,0.00019999,2]
[426824948,1782911439000,-1013.17122739,0.00019903,2]
[426824934,1782911439000,-250.0,0.000198,2]
[426824947,1782911439000,-475.40889693,0.000199,2]
[426824956,1782911439000,-298.82,0.0002,2]
[426824967,1782911439000,-434.25575528,0.00020627,2]
[426824954,1782911439000,-3641.0,0.0002,5]
[426824966,1782911439000,-10018.21528157,0.000206,2]
[426824953,1782911439000,-500.0,0.00019999,2]
[426824964,1782911439000,-151.0,0.00020381,2]
[426824965,1782911439000,-10018.21528157,0.000204,2]
[426824955,1782911439000,-16392.82,0.0002,2]
[426824951,1782911439000,-500.0,0.00019999,2]
[426824946,1782911439000,-400.0,0.000199,7]
[426824949,1782911439000,-500.0,0.00019999,2]
[426824952,1782911439000,-500.0,0.00019999,2]
[426824963,1782911439000,-1500.0,0.00020377,2]
[426825043,1782911440000,-324.55,0.00022466,2]
[426825033,1782911440000,-530.89454282,0.000221,7]
[426825042,1782911440000,-383.99,0.00022466,2]
[426825032,1782911440000,-151.0,0.00022076,2]
[426825025,1782911440000,-151.0,0.00022021,2]
[426825023,1782911440000,-151.0,0.00022021,2]
[426825024,1782911440000,-151.0,0.00022021,2]
[426825026,1782911440000,-151.0,0.00022021,2]
[426825028,1782911440000,-151.0,0.00022021,2]
[426825019,1782911440000,-227.91704626,0.00022021,2]
[426825027,1782911440000,-151.0,0.00022021,2]
[426825044,1782911440000,-1803.69,0.00022466,2]
[426825039,1782911440000,-151.0,0.00022353,2]
[426825041,1782911440000,-152.0,0.00022443,4]
[426825040,1782911440000,-2337.0,0.000224,2]
[426825037,1782911440000,-1898.70137339,0.00022295,2]
[426825035,1782911440000,-500.0,0.00022135,2]
[426825038,1782911440000,-475.40889691,0.000223,2]
[426825047,1782911440000,-518.5,0.00022569,2]
[426825045,1782911440000,-754.42,0.00022466,2]
[426825046,1782911440000,-1960.3,0.00022466,2]
[426825056,1782911440000,-1278.0,0.000228,2]
[426825051,1782911440000,-500.0,0.00022786,2]
[426825050,1782911440000,-227.91704626,0.00022569,2]
[426825048,1782911440000,-1343.97991791,0.00022569,2]
[426825030,1782911440000,-151.0,0.00022021,2]
[426825034,1782911440000,-208.27442596,0.00022131,2]
[426825022,1782911440000,-151.0,0.00022021,2]
[426825017,1782911440000,-151.0,0.00022021,2]
[426825029,1782911440000,-151.0,0.00022021,2]
[426824996,1782911440000,-10018.21528157,0.000219,2]
[426824993,1782911440000,-10018.21528157,0.000217,2]
[426825003,1782911440000,-500.0,0.00021999,2]
[426824995,1782911440000,-674.70454458,0.000219,2]
[426824994,1782911440000,-548.55,0.00021863,2]
[426824999,1782911440000,-344.86487342,0.00021999,2]
[426825001,1782911440000,-500.0,0.00021999,2]
[426825000,1782911440000,-500.0,0.00021999,2]
[426825005,1782911440000,-500.0,0.00022021,2]
[426825004,1782911440000,-819.37534968,0.00022,7]
[426825052,1782911440000,-150.0,0.000228,2]
[426825002,1782911440000,-500.0,0.00021999,2]
[426824998,1782911440000,-5000.0,0.00021918,2]
[426824997,1782911440000,-351.0,0.000219,7]
[426825007,1782911440000,-1898.70137339,0.00022021,2]
[426825006,1782911440000,-2074.0,0.00022021,2]
[426825009,1782911440000,-151.0,0.00022021,2]
[426825008,1782911440000,-151.0,0.00022021,2]
[426825010,1782911440000,-215.58700553,0.00022021,2]
[426825011,1782911440000,-151.0,0.00022021,2]
[426825016,1782911440000,-151.0,0.00022021,2]
[426825015,1782911440000,-151.0,0.00022021,2]
[426825014,1782911440000,-151.0,0.00022021,2]
[426825012,1782911440000,-151.0,0.00022021,2]
[426825013,1782911440000,-151.0,0.00022021,2]
[426825018,1782911440000,-151.0,0.00022021,2]
[426825020,1782911440000,-151.0,0.00022021,2]
[426825021,1782911440000,-151.0,0.00022021,2]
[426825049,1782911440000,-1898.70137339,0.00022569,2]
[426825097,1782911440000,-347.89735211,0.00023484,2]
[426825055,1782911440000,-1362.0,0.000228,2]
[426825089,1782911440000,-215.99411706,0.00023484,2]
[426825088,1782911440000,-211.53940679,0.0002348,2]
[426825085,1782911440000,-194.7462476,0.0002348,2]
[426825090,1782911440000,-163.50815598,0.00023484,2]
[426825084,1782911440000,-158.89922203,0.0002348,2]
[426825086,1782911440000,-164.55469089,0.0002348,2]
[426825093,1782911440000,-159.70202903,0.00023484,2]
[426825094,1782911440000,-163.8624319,0.00023484,2]
[426825100,1782911440000,-155.98094979,0.00023484,2]
[426825099,1782911440000,-220.98982801,0.00023484,2]
[426825101,1782911440000,-155.20318751,0.00023484,2]
[426825095,1782911440000,-180.09386924,0.00023484,2]
[426825104,1782911440000,-172.52644928,0.00023484,2]
[426825102,1782911440000,-213.89431835,0.00023484,2]
[426825098,1782911440000,-264.1686889,0.00023484,2]
[426825096,1782911440000,-156.75526731,0.00023484,2]
[426825103,1782911440000,-179.1106244,0.00023484,2]
[426825113,1782911440000,-227.91704626,0.00023665,2]
[426825112,1782911440000,-1898.70137339,0.00023665,2]
[426825114,1782911440000,-13602.25062841,0.00023667,2]
[426825110,1782911440000,-442.30223081,0.000235,2]
[426825109,1782911440000,-156.95311677,0.00023484,2]
[426825106,1782911440000,-176.64527055,0.00023484,2]
[426825108,1782911440000,-183.46795292,0.00023484,2]
[426825111,1782911440000,-520.85062762,0.00023665,2]
[426825105,1782911440000,-156.87808703,0.00023484,2]
[426825053,1782911440000,-150.0,0.000228,2]
[426825087,1782911440000,-178.56189964,0.0002348,2]
[426825080,1782911440000,-185.47644773,0.00023479,2]
[426825107,1782911440000,-182.44440802,0.00023484,2]
[426825082,1782911440000,-216.51801333,0.0002348,2]
[426825083,1782911440000,-170.11105229,0.0002348,2]
[426825054,1782911440000,-3566.0,0.000228,2]
[426825057,1782911440000,-1898.70137339,0.00022843,2]
[426825068,1782911440000,-160.0,0.00023306,3]
[426825059,1782911440000,-1173.7,0.00022958,2]
[426825060,1782911440000,-13602.25062841,0.00023,2]
[426825061,1782911440000,-837.26305661,0.00023016,2]
[426825062,1782911440000,-537.6845,0.00023117,2]
[426825063,1782911440000,-1898.70137339,0.00023117,2]
[426825066,1782911440000,-160.0,0.0002322,3]
[426825067,1782911440000,-200.0,0.00023303,2]
[426825064,1782911440000,-227.91704626,0.00023117,2]
[426825065,1782911440000,-273.77786131,0.00023165,2]
[426825058,1782911440000,-800.0,0.000229,8]
[426825069,1782911440000,-13602.25062841,0.00023333,2]
[426825091,1782911440000,-187.97082495,0.00023484,2]
[426825092,1782911440000,-894.56229931,0.00023484,2]
[426825081,1782911440000,-155.73288838,0.00023479,2]
[426825076,1782911440000,-500.0,0.0002347,2]
[426825071,1782911440000,-1898.70137339,0.00023391,2]
[426825079,1782911440000,-218.72588167,0.00023479,2]
[426825073,1782911440000,-152.41248951,0.00023441,2]
[426825077,1782911440000,-172.7168584,0.00023479,2]
[426825070,1782911440000,-1274.0,0.0002336,3]
[426825074,1782911440000,-343.9926575,0.00023441,2]
[426825075,1782911440000,-289.8747947,0.00023441,2]
[426825078,1782911440000,-159.266688,0.00023479,2]
[426825072,1782911440000,-190.05,0.000234,2]
[426825160,1782911441000,-184.57095073,0.00024719,2]
[426825158,1782911441000,-442.63273246,0.00024719,2]
[426825155,1782911441000,-579.74958939,0.00024691,2]
[426825152,1782911441000,-13602.25062841,0.00024667,2]
[426825150,1782911441000,-769.38,0.00024658,2]
[426825156,1782911441000,-475.40889691,0.00024699,2]
[426825154,1782911441000,-687.98531501,0.00024691,2]
[426825151,1782911441000,-189.46,0.00024658,2]
[426825153,1782911441000,-304.82497902,0.00024691,2]
[426825148,1782911441000,-181.42,0.00024658,2]
[426825157,1782911441000,-506.93851576,0.00024719,2]
[426825164,1782911441000,-345.43371681,0.0002473,2]
[426825171,1782911441000,-340.22210458,0.00024731,2]
[426825163,1782911441000,-218.4418404,0.0002473,2]
[426825165,1782911441000,-217.55129341,0.0002473,2]
[426825167,1782911441000,-370.95289545,0.0002473,2]
[426825161,1782911441000,-160.0,0.00024721,3]
[426825169,1782911441000,-311.46577676,0.0002473,2]
[426825168,1782911441000,-181.97617066,0.0002473,2]
[426825166,1782911441000,-174.70557871,0.0002473,2]
[426825170,1782911441000,-433.03602666,0.00024731,2]
[426825184,1782911441000,-360.18773848,0.00024736,2]
[426825173,1782911441000,-389.49249521,0.00024732,2]
[426825149,1782911441000,-1000.0,0.00024658,2]
[426825183,1782911441000,-327.7248638,0.00024736,2]
[426825162,1782911441000,-2337.0,0.00024721,3]
[426825159,1782911441000,-403.6837646,0.00024719,2]
[426825129,1782911441000,-500.0,0.00024174,2]
[426825141,1782911441000,-216.66345934,0.000243,3]
[426825174,1782911441000,-329.10938177,0.00024732,2]
[426825115,1782911441000,-2337.0,0.0002386,3]
[426825116,1782911441000,-3000.0,0.00023899,2]
[426825121,1782911441000,-285.0,0.00024,2]
[426825118,1782911441000,-1898.70137339,0.00023939,2]
[426825117,1782911441000,-169.56,0.00023901,2]
[426825124,1782911441000,-195.0,0.00024034,5]
[426825123,1782911441000,-224.0,0.00024,2]
[426825120,1782911441000,-13602.25062841,0.00024,2]
[426825122,1782911441000,-150.0,0.00024,2]
[426825125,1782911441000,-400.0,0.00024079,2]
[426825126,1782911441000,-336.01,0.0002411,2]
[426825130,1782911441000,-2337.0,0.0002418,3]
[426825127,1782911441000,-283.99,0.0002411,2]
[426825131,1782911441000,-2337.0,0.00024208,3]
[426825128,1782911441000,-180.0,0.0002411,2]
[426825132,1782911441000,-1898.70137339,0.00024213,2]
[426825134,1782911441000,-227.91704626,0.00024213,2]
[426825145,1782911441000,-1898.70137339,0.00024487,2]
[426825144,1782911441000,-677.40595642,0.00024419,2]
[426825146,1782911441000,-1000.0,0.00024657,2]
[426825143,1782911441000,-13602.25062841,0.00024333,2]
[426825136,1782911441000,-152.0,0.00024217,5]
[426825147,1782911441000,-758.099753,0.00024657,2]
[426825138,1782911441000,-2337.0,0.00024265,3]
[426825142,1782911441000,-151.0,0.00024324,2]
[426825172,1782911441000,-317.79844405,0.00024732,2]
[426825119,1782911441000,-330.70994268,0.00023986,2]
[426825178,1782911441000,-375.9416499,0.00024736,2]
[426825206,1782911441000,-457.90611043,0.00024899,2]
[426825209,1782911441000,-2337.0,0.00024975,3]
[426825208,1782911441000,-155.08622054,0.00024967,2]
[426825212,1782911441000,-285.0,0.00025,2]
[426825215,1782911441000,-1898.70137339,0.00025035,2]
[426825216,1782911441000,-496.75296727,0.00025035,2]
[426825214,1782911441000,-2007.0,0.00025,2]
[426825213,1782911441000,-224.0,0.00025,2]
[426825217,1782911441000,-627.72161164,0.0002509,2]
[426825219,1782911441000,-2142.374,0.00025135,9]
[426825222,1782911441000,-273.77786131,0.00025231,2]
[426825224,1782911441000,-227.91704626,0.00025309,2]
[426825205,1782911441000,-837.2630566,0.00024858,2]
[426825223,1782911441000,-1898.70137339,0.00025309,2]
[426825221,1782911441000,-1516.0,0.000252,3]
[426825226,1782911441000,-496.75296727,0.00025368,2]
[426825227,1782911441000,-705.82713726,0.00025397,2]
[426825225,1782911441000,-13602.25062841,0.00025333,2]
[426825228,1782911441000,-537.91,0.000254,14]
[426825233,1782911441000,-1031.97797251,0.00025524,2]
[426825232,1782911441000,-457.23746853,0.00025524,2]
[426825231,1782911441000,-391.54300211,0.00025524,2]
[426825229,1782911441000,-251.861207,0.0002546,2]
[426825230,1782911441000,-2573.276331,0.0002546,2]
[426825234,1782911441000,-869.62438409,0.00025524,2]
[426825175,1782911441000,-357.12379928,0.00024732,2]
[426825218,1782911441000,-138441.0,0.000251,2]
[426825207,1782911441000,-500.0,0.00024942,2]
[426825220,1782911441000,-215.175,0.00025135,9]
[426825202,1782911441000,-371.88248848,0.00024781,2]
[426825181,1782911441000,-593.8447002,0.00024736,2]
[426825204,1782911441000,-150.0,0.00024799,20]
[426825179,1782911441000,-327.01631197,0.00024736,2]
[426825177,1782911441000,-431.98823412,0.00024736,2]
[426825176,1782911441000,-423.07881359,0.00024732,2]
[426825182,1782911441000,-319.40405805,0.00024736,2]
[426825180,1782911441000,-715.64983945,0.00024736,2]
[426825185,1782911441000,-695.79470422,0.00024736,2]
[426825186,1782911441000,-528.33737781,0.00024736,2]
[426825188,1782911441000,-311.96189957,0.00024736,2]
[426825189,1782911441000,-193.03841669,0.00024736,2]
[426825190,1782911441000,-310.40637502,0.00024736,2]
[426825192,1782911441000,-223.15865041,0.00024736,2]
[426825191,1782911441000,-244.60233473,0.00024736,2]
[426825187,1782911441000,-441.97965603,0.00024736,2]
[426825199,1782911441000,-198.32896807,0.00024736,2]
[426825195,1782911441000,-313.75617406,0.00024736,2]
[426825211,1782911441000,-13602.25062841,0.00025,2]
[426825201,1782911441000,-227.91704626,0.00024761,2]
[426825200,1782911441000,-1898.70137339,0.00024761,2]
[426825210,1782911441000,-293.0,0.00024995,5]
[426825203,1782911441000,-5862.79551186,0.00024781,2]
[426825197,1782911441000,-364.88881604,0.00024736,2]
[426825198,1782911441000,-366.93590584,0.00024736,2]
[426825194,1782911441000,-345.05289856,0.00024736,2]
[426825193,1782911441000,-358.2212488,0.00024736,2]
[426825196,1782911441000,-353.29054109,0.00024736,2]
[426825275,1782911442000,-162.10458776,0.0002557,2]
[426825283,1782911442000,-279.15219163,0.0002557,2]
[426825272,1782911442000,-208.3957566,0.0002557,2]
[426825273,1782911442000,-490.52446795,0.0002557,2]
[426825266,1782911442000,-206.64058683,0.00025566,2]
[426825268,1782911442000,-333.48039768,0.00025569,2]
[426825267,1782911442000,-208.29132022,0.00025566,2]
[426825270,1782911442000,-206.02421442,0.0002557,2]
[426825271,1782911442000,-647.98235117,0.0002557,2]
[426825281,1782911442000,-491.5872957,0.0002557,2]
[426825262,1782911442000,-204.76953854,0.00025566,2]
[426825282,1782911442000,-180.80537192,0.0002557,2]
[426825288,1782911442000,-792.50606671,0.0002557,2]
[426825276,1782911442000,-282.47652638,0.0002557,2]
[426825279,1782911442000,-395.8964668,0.0002557,2]
[426825278,1782911442000,-536.73737959,0.0002557,2]
[426825274,1782911442000,-563.91247484,0.0002557,2]
[426825277,1782911442000,-210.81047977,0.0002557,2]
[426825285,1782911442000,-153.46607303,0.0002557,2]
[426825284,1782911442000,-540.28160772,0.0002557,2]
[426825293,1782911442000,-467.94284936,0.0002557,2]
[426825287,1782911442000,-1043.69205633,0.0002557,2]
[426825294,1782911442000,-386.07683337,0.0002557,2]
[426825292,1782911442000,-662.96948404,0.0002557,2]
[426825269,1782911442000,-235.7709842,0.00025569,2]
[426825280,1782911442000,-479.10608708,0.0002557,2]
[426825264,1782911442000,-535.68569892,0.00025566,2]
[426825236,1782911442000,-436.88368081,0.00025564,2]
[426825265,1782911442000,-634.61822038,0.00025566,2]